fUSD/lending_fUSD_20251017
["ID","MTS","AMOUNT","RATE_DAILY","PERIOD"]
[391671983,1760724646005,-382.54512332,0.00039082,7]
[391671985,1760724646015,-382.54512332,0.00039123,7]
[391671987,1760724646024,-150.0,0.00039135,7]
[391671989,1760724646034,-382.54512332,0.00039165,7]
[391671991,1760724646044,-150.0,0.00039201,7]
[391671993,1760724646054,-382.54512332,0.00039206,7]
[391671996,1760724646064,-382.54512332,0.00039247,7]
[391671998,1760724646074,-150.0,0.00039268,7]
[391672000,1760724646084,-382.54512332,0.00039289,7]
[391672001,1760724646094,-382.54512332,0.0003933,7]
[391672004,1760724646103,-150.0,0.00039334,7]
[391672006,1760724646113,-17440.0578412,0.00039344,3]
[391672008,1760724646123,-900.0,0.00039354,7]
[391672010,1760724646133,-382.54512332,0.00039372,7]
[391672012,1760724646142,-150.0,0.000394,7]
[391672014,1760724646152,-1790.51,0.000394,14]
[391672016,1760724646163,-382.54512332,0.00039413,7]
[391672018,1760724646172,-104640.347047,0.00039434,3]
[391672020,1760724646182,-107350.515894,0.00039434,3]
[391672022,1760724646191,-382.54512332,0.00039454,7]
[391672024,1760724646201,-150.0,0.00039466,7]
[391672026,1760724646210,-382.54512332,0.00039496,7]
[391672028,1760724646220,-150.0,0.00039532,7]
[391672030,1760724646230,-382.54512332,0.00039537,7]
[391672032,1760724646239,-382.54512332,0.00039579,7]
[391672034,1760724646249,-150.0,0.00039598,7]
[391672036,1760724646259,-382.54512332,0.0003962,7]
[391672038,1760724646268,-3909.4705945,0.00039632,2]
[391672040,1760724646277,-382.54512332,0.00039661,7]
[391672042,1760724646288,-150.0,0.00039664,7]
[391672044,1760724646297,-8945.87632447,0.00039693,3]
[391672046,1760724646307,-265.89,0.000397,2]
[391672048,1760724646319,-382.54512332,0.00039703,7]
[391672050,1760724646328,-3408.0,0.00039704,2]
[391672052,1760724646338,-522.325,0.00039704,2]
[391672054,1760724646347,-635.621,0.00039704,2]
[391672056,1760724646358,-613.862,0.00039704,2]
[391672058,1760724646368,-599.873,0.00039704,2]
[391672060,1760724646377,-1585.17,0.00039704,2]
[391672062,1760724646387,-282.756,0.00039704,2]
[391672069,1760724646443,-150.0,0.0003973,7]
[391672071,1760724646452,-382.54512332,0.00039744,7]
[391672073,1760724646462,-382.54512332,0.00039786,7]
[391672075,1760724646472,-150.0,0.00039796,7]
[391672077,1760724646481,-265.89,0.000398,2]
[391672079,1760724646490,-382.54512332,0.00039827,7]
[391672081,1760724646499,-150.0,0.00039862,7]
[391672083,1760724646508,-382.54512332,0.00039868,7]
[391672085,1760724646518,-382.54512332,0.0003991,7]
[391672087,1760724646527,-150.0,0.00039929,7]
[391672089,1760724646536,-382.54512332,0.00039951,7]
[391672091,1760724646546,-87200.2892059,0.0003999,3]
[391672092,1760724646555,-80512.8869202,0.0003999,3]
[391672095,1760724646564,-382.54512332,0.00039993,7]
[391672096,1760724646574,-150.0,0.00039995,7]
[391672098,1760724646584,-151.0,0.00039997,14]
[391672100,1760724646593,-173381.89126408,0.0004,15]
[391672102,1760724646603,-382.54512332,0.00040034,7]
[391672104,1760724646613,-150.0,0.00040061,7]
[391672106,1760724646621,-382.54512332,0.00040075,7]
[391672108,1760724646630,-382.54512332,0.00040117,7]
[391672110,1760724646639,-150.0,0.00040127,7]
[391672112,1760724646648,-382.54512332,0.00040158,7]
[391672114,1760724646657,-900.0,0.00040176,7]
[391672116,1760724646667,-150.0,0.00040193,7]
[391672118,1760724646676,-382.54512332,0.000402,7]
[391672120,1760724646685,-382.54512332,0.00040241,7]
[391672122,1760724646695,-150.0,0.00040259,7]
[391672124,1760724646704,-17440.0578412,0.00040272,3]
[391672126,1760724646713,-382.54512332,0.00040282,7]
[391672128,1760724646723,-1400.0,0.000403,14]
[391672130,1760724646731,-382.54512332,0.00040324,7]
[391672132,1760724646741,-150.0,0.00040325,7]
[391672134,1760724646750,-382.54512332,0.00040365,7]
[391672136,1760724646759,-150.0,0.00040391,7]
[391672138,1760724646769,-1900.0,0.000404,14]
[391672140,1760724646779,-5512.0,0.000404,3]
[391672142,1760724646787,-382.54512332,0.00040407,7]
[391672144,1760724646797,-382.54512332,0.00040448,7]
[391672146,1760724646806,-150.0,0.00040457,7]
[391672148,1760724646816,-382.54512332,0.00040489,7]
[391672150,1760724646826,-2300.0,0.000405,14]
[391672152,1760724646835,-150.0,0.00040524,7]
[391672153,1760724646844,-382.54512332,0.00040531,7]
[391672155,1760724646854,-382.54512332,0.00040572,7]
[391672157,1760724646863,-17440.0578412,0.0004058,3]
[391672159,1760724646872,-150.0,0.0004059,7]
[391672161,1760724646882,-400.0,0.000406,14]
[391672163,1760724646892,-382.54512332,0.00040614,7]
[391672165,1760724646902,-382.54512332,0.00040655,7]
[391672168,1760724646916,-150.0,0.00040656,7]
[391672170,1760724646925,-382.54512332,0.00040696,7]
[391672172,1760724646935,-1790.51,0.000407,14]
[391672174,1760724646944,-400.0,0.000407,14]
[391672176,1760724646954,-150.0,0.00040722,7]
[391672178,1760724646963,-382.54512332,0.00040738,7]
[391672180,1760724646973,-382.54512332,0.00040779,7]
[391672181,1760724646982,-150.0,0.00040788,7]
[391672184,1760724646994,-460.39645,0.0004079,6]
[391672185,1760724647003,-400.0,0.000408,14]
[391672187,1760724647012,-382.54512332,0.00040821,7]
[391672189,1760724647022,-17440.0578412,0.00040852,3]
[391672191,1760724647031,-150.0,0.00040854,7]
[391672193,1760724647041,-382.54512332,0.00040862,7]
[391672195,1760724647049,-949.82720223,0.00040898,15]
[391672197,1760724647059,-151.13800796,0.00040898,2]
[391672199,1760724647068,-749.89612504,0.00040898,15]
[391672201,1760724647079,-460.39644,0.00040898,6]
[391672203,1760724647088,-164.67649827,0.00040898,15]
[391672205,1760724647098,-400.0,0.000409,14]
[391672207,1760724647108,-382.54512332,0.00040904,7]
[391672209,1760724647118,-150.0,0.0004092,7]
[391672211,1760724647128,-382.54512332,0.00040945,7]
[391672213,1760724647137,-250.0,0.0004097,3]
[391672215,1760724647147,-382.54512332,0.00040986,7]
[391672218,1760724647158,-236.78100062,0.00040986,7]
[391672220,1760724647168,-17440.0578412,0.00040987,3]
[391672222,1760724647177,-300.0,0.00040997,10]
[391672224,1760724647186,-300.0,0.00040997,10]
[391672225,1760724647196,-300.0,0.00040997,10]
[391672227,1760724647206,-300.0,0.00040997,10]
[391672229,1760724647216,-300.0,0.00040997,10]
[391672231,1760724647226,-300.0,0.00040997,10]
[391672233,1760724647236,-300.0,0.00040997,10]
[391672235,1760724647249,-300.0,0.00040997,10]
[391672237,1760724647259,-300.0,0.00040997,10]
[391672239,1760724647269,-300.0,0.00040997,10]
[391672241,1760724647279,-300.0,0.00040997,10]
[391672243,1760724647288,-300.0,0.00040997,10]
[391672245,1760724647298,-302.85637029,0.00040997,10]
[391672247,1760724647308,-900.0,0.00040998,7]
[391672249,1760724647318,-200.0,0.00040998,7]
[391672251,1760724647327,-151.0,0.00040998,14]
[391672253,1760724647336,-151.0,0.00040998,14]
[391672255,1760724647345,-151.0,0.00040998,10]
[391672257,1760724647355,-200.0,0.00040998,7]
[391672259,1760724647364,-1091.0,0.00040998,5]
[391672261,1760724647373,-151.0,0.00040998,15]
[391672263,1760724647383,-151.0,0.00040998,15]
[391672265,1760724647392,-151.0,0.00040998,15]
[391672266,1760724647401,-2215.4860607,0.00040998,2]
[391672269,1760724647414,-151.0,0.00040998,20]
[391672270,1760724647425,-151.0,0.00040998,20]
[391672272,1760724647435,-151.0,0.00040998,20]
[391672274,1760724647445,-151.0,0.00040998,20]
[391672276,1760724647454,-151.0,0.00040998,20]
[391672278,1760724647464,-151.0,0.00040998,20]
[391672280,1760724647474,-151.0,0.00040998,20]
[391672282,1760724647484,-151.0,0.00040998,20]
[391672284,1760724647494,-300.0,0.00040999,10]
[391672286,1760724647503,-300.0,0.00040999,10]
[391672288,1760724647513,-150.0,0.00041,10]
[391672290,1760724647523,-11434.605,0.00041095,7]
[391672292,1760724647532,-500.0,0.000411,2]
[391672294,1760724647542,-1200.0,0.000411,2]
[391672296,1760724647552,-460.39645,0.0004129,8]
[391672298,1760724647561,-582.0,0.00041365,3]
[391672300,1760724647571,-200.0,0.00041408,7]
[391672302,1760724647580,-200.0,0.00041408,7]
[391672304,1760724647593,-279.889391,0.00041444,14]
[391672306,1760724647603,-151.0,0.00041444,15]
[391672308,1760724647612,-500.0,0.00041534,2]
[391672310,1760724647621,-152.0,0.00041632,7]
[391672312,1760724647632,-297.27820156,0.00041632,5]
[391672314,1760724647641,-304.35517598,0.00041663,23]
[391672316,1760724647650,-816.0,0.00041721,2]
[391672318,1760724647661,-1006.901,0.00041774,2]
[391672320,1760724647670,-2546.0,0.00041774,2]
[391672321,1760724647680,-3356.0,0.00041774,2]
[391672323,1760724647689,-460.39645,0.0004179,10]
[391672325,1760724647699,-151.0,0.000418,20]
[391672327,1760724647708,-151.0,0.000418,20]
[391672329,1760724647718,-151.0,0.000418,20]
[391672331,1760724647727,-223.75364,0.000418,20]
[391672333,1760724647736,-200.0,0.00041822,7]
[391672335,1760724647746,-150.0,0.00042,10]
[391672337,1760724647755,-860504.18185561,0.00042,12]
[391672339,1760724647764,-1348.77930457,0.0004201,2]
[391672341,1760724647774,-5578.62186906,0.000422,2]
[391672343,1760724647783,-200.0,0.0004224,7]
[391672345,1760724647792,-3909.4705945,0.00042266,15]
[391672347,1760724647802,-460.39644,0.0004229,13]
[391672349,1760724647811,-200.0,0.00042663,7]
[391672351,1760724647820,-3408.0,0.00042704,2]
[391672353,1760724647829,-460.39645,0.0004279,15]
[391672354,1760724647838,-982.95443623,0.0004282,2]
[391672356,1760724647847,-214.0,0.00043,7]
[391672358,1760724647856,-265.33668962,0.00043,20]
[391672360,1760724647865,-1790.51,0.00043,14]
[391672362,1760724647875,-151.0,0.00043444,15]
[391672364,1760724647884,-151.0,0.00043444,20]
[391672366,1760724647893,-151.0,0.00043444,20]
[391672368,1760724647903,-151.0,0.00043444,20]
[391672370,1760724647917,-1352.2,0.000438,10]
[391672372,1760724647927,-1996.81,0.000438,7]
[391672374,1760724647936,-1000.0,0.00043893,8]
[391672376,1760724647946,-11310.18655744,0.000439,20]
[391672378,1760724647955,-150.0,0.00044,10]
[391672380,1760724647964,-600.0,0.000444,15]
[391672382,1760724647974,-288.81499741,0.000445,7]
[391672384,1760724647983,-48357.25656197,0.0004455,2]
[391672386,1760724647994,-816.0,0.00044721,2]
[391672388,1760724648003,-2546.0,0.00044774,2]
[391672390,1760724648013,-2221.741,0.00044774,2]
[391672392,1760724648023,-1052.0,0.000448,16]
[391672394,1760724648033,-151.0,0.000449,20]
[391672396,1760724648042,-151.0,0.000449,20]
[391672398,1760724648051,-151.0,0.000449,20]
[391672400,1760724648060,-447.72986436,0.000449,2]
[391672402,1760724648070,-3909.4705945,0.000449,15]
[391672404,1760724648079,-250.0,0.0004497,3]
[391672406,1760724648088,-30352.33609423,0.00045,2]
[391672408,1760724648097,-28491.66490961,0.00045,10]
[391672410,1760724648106,-604.16870751,0.00045,10]
[391672412,1760724648116,-2387.36030699,0.00045,14]
[391672413,1760724648125,-934.33080386,0.00045,20]
[391672415,1760724648135,-272.27803058,0.00045312,6]
[391672417,1760724648144,-1879.00347654,0.000454,2]
[391672419,1760724648153,-447.72986436,0.000454,2]
[391672421,1760724648164,-372.329,0.00045704,2]
[391672423,1760724648174,-1879.00347654,0.000459,2]
[391672425,1760724648185,-447.72986436,0.000459,2]
[391672427,1760724648194,-417.98,0.00046143,2]
[391672429,1760724648203,-500.0,0.000466,120]
[391672431,1760724648212,-500.0,0.000466,2]
[391672432,1760724648221,-1200.0,0.000466,2]
[391672434,1760724648231,-534.0,0.000466,2]
[391672436,1760724648240,-500.0,0.00046644,120]
[391672438,1760724648249,-500.0,0.00046644,60]
[391672440,1760724648258,-1000.0,0.00046666,60]
[391672442,1760724648268,-239.0,0.000467,120]
[391672444,1760724648278,-900.0,0.00046752,60]
[391672446,1760724648288,-7315.244,0.00046773,78]
[391672448,1760724648296,-460.82,0.00046773,78]
[391672450,1760724648306,-20000.0,0.000468,120]
[391672452,1760724648315,-328.56737514,0.000468,120]
[391672454,1760724648324,-10000.0,0.000468,120]
[391672455,1760724648334,-2500.0,0.0004689,42]
[391672457,1760724648343,-5000.0,0.000469,120]
[391672459,1760724648352,-763.54260596,0.000469,120]
[391672461,1760724648362,-173.00126746,0.000469,2]
[391672463,1760724648371,-500.0,0.00046918,120]
[391672465,1760724648381,-1000.0,0.00046946,8]
[391672467,1760724648394,-302.367248,0.00046997,120]
[391672469,1760724648403,-1000.0,0.00046999,120]
[391672471,1760724648415,-1000.0,0.00047,120]
[391672473,1760724648426,-608.59837301,0.00047,30]
[391672475,1760724648435,-1000.0,0.00047,120]
[391672476,1760724648444,-50000.0,0.00047,33]
[391672477,1760724648454,-150.0,0.00047,50]
[391672478,1760724648462,-24751.53637936,0.00047,120]
[391672479,1760724648535,-25248.46362064,0.00047,120]
[391672480,1760724648545,-25000.0,0.00047,120]
[391672481,1760724648554,-400.0,0.00047,120]
[391672483,1760724648563,-7428.28,0.00047,120]
[391672485,1760724648572,-200.0,0.00047,120]
[391672487,1760724648581,-959770.03749549,0.00047,120]
[391672492,1760724648619,-40229.96250451,0.00047,120]
[391672494,1760724648628,-7335.42237996,0.00047,120]
[391672496,1760724648639,-50484.12546131,0.00047,120]
[391672498,1760724648650,-29120.80847923,0.00047,120]
[391672508,1760724648740,500.0,0.00044452,60]
[391672515,1760724648800,500.0,0.00045548,60]
[391672519,1760724648828,-500.0,0.00024657,2]
[391672521,1760724648837,-556.84281581,0.00024841,2]
[391672523,1760724648847,-500.0,0.00024931,2]
[391672525,1760724648856,-201.16722523,0.00025205,2]
[391672527,1760724648867,-298.83277477,0.00025205,2]
[391672529,1760724648877,-619.3,0.00025479,2]
[391672531,1760724648886,-500.0,0.000312,6]
[391672533,1760724648895,-500.0,0.00046644,60]
[391672536,1760724648904,-499030.86723121,0.00047,120]
[391672538,1760724648921,-2041.72937264,0.00047,120]
[391672540,1760724648932,-475.17222148,0.00047,120]
[391672550,1760724649032,7478.64385936,0.00046325,120]
[391672553,1760724649044,-500.0,0.00029899,2]
[391672555,1760724649054,-221.33578412,0.00029899,2]
[391672557,1760724649063,-500.0,0.00029899,2]
[391672559,1760724649072,-1402.48277812,0.000299,3]
[391672561,1760724649084,-674.76962602,0.000299,3]
[391672563,1760724649094,-668.04206111,0.000299,3]
[391672573,1760724649183,1000.0,0.00046574,120]
[391672966,1760724653085,150.0,0.000312,30]
[391673038,1760724653800,155.4,0.000334,60]
[391673043,1760724653837,500950.00000001,0.00043985,56]
[391673088,1760724654279,212.6,0.00042,90]
[391674492,1760724967758,200.0,0.00031648,120]
[391674512,1760725184787,-154.57,0.00016343,2]
[391674513,1760725184811,-634.15807633,0.000195,2]
[391674514,1760725184832,-179.50913685,0.000195,2]
[391674515,1760725184853,-191.3416869,0.000195,2]
[391674516,1760725184875,-634.15807633,0.000197,2]
[391674517,1760725184897,-179.50913685,0.000197,2]
[391674518,1760725184918,-191.3416869,0.000197,2]
[391674519,1760725184940,-634.15807633,0.000199,2]
[391674520,1760725184962,-191.3416869,0.000199,2]
[391674521,1760725257035,-6153.64846188,0.000195,2]
[391674522,1760725257061,-6153.64846188,0.000197,2]
[391674523,1760725257093,-6153.64846188,0.000199,2]
[391674524,1760725257118,-6153.64846188,0.000201,2]
[391674525,1760725257144,-6153.64846188,0.000203,2]
[391674526,1760725257169,-6153.64846188,0.000205,2]
[391674527,1760725257194,-6153.64846188,0.000207,2]
[391674528,1760725257218,-4646.05556684,0.000209,2]
[391674529,1760725262759,200.0,0.00032052,120]
[391674541,1760725363170,214.5,0.0003206,30]
[391674553,1760725562274,200.0,0.0003206,120]
[391674559,1760725671575,2216.60838355,0.00032059,31]
[391674568,1760725809391,218.24295797,0.00025774,120]
[391674569,1760725811997,-2700.0,0.000147,5]
[391674570,1760725812018,-300.0,0.000147,5]
[391674571,1760725812040,-5400.0,0.000148,5]
[391674572,1760725812062,-600.0,0.000148,5]
[391674573,1760725812084,-8100.0,0.000149,5]
[391674574,1760725812105,-1000.0,0.000149,5]
[391674584,1760725832061,-300.0,0.00014799,2]
[391674585,1760725832072,-364.21,0.00014799,2]
[391674586,1760725832124,-835.79,0.00014799,2]
[391674587,1760725832137,-150.0,0.00014899,2]
[391674588,1760725832147,-538.30389807,0.000149,2]
[391674589,1760725832160,-736.16862197,0.000149,2]
[391674590,1760725832174,-1118.96304471,0.000149,2]
[391674591,1760725832185,-3282.18173155,0.000149,2]
[391674592,1760725832197,-348.85478143,0.000149,2]
[391674593,1760725832207,-211.2136611,0.000149,2]
[391674594,1760725832216,-7408.60254364,0.000149,2]
[391674595,1760725832229,-938.58626969,0.000149,2]
[391674596,1760725832259,-428.0,0.000149,2]
[391674597,1760725832274,-358.79633395,0.000149,2]
[391674598,1760725832287,-385.9555348,0.000149,2]
[391674599,1760725832297,-5544.08935412,0.000149,2]
[391674600,1760725832311,-2345.18931984,0.000149,2]
[391674601,1760725832322,-814.82102388,0.000149,2]
[391674603,1760725832460,-417.654328,0.000149,2]
[391674605,1760725832472,-626.25577195,0.000149,2]
[391674607,1760725832483,-1053.03409589,0.000149,2]
[391674609,1760725832495,-25803.72151558,0.000149,2]
[391674612,1760725832507,-4997.87782129,0.000149,2]
[391674614,1760725832520,-807.86984896,0.000149,2]
[391674616,1760725832534,-4181.42850488,0.000149,2]
[391674619,1760725832547,-100.27234476,0.000149,2]
[391674622,1760725832558,-173.00126746,0.000149,2]
[391674625,1760725832569,-500.0,0.00014973,2]
[391674627,1760725832579,-192.58382691,0.00014973,2]
[391674629,1760725832588,-500.0,0.00014973,2]
[391674631,1760725832597,-133.37006454,0.00014973,2]
[391674662,1760725837984,-366.62993546,0.00014973,2]
[391674663,1760725837994,-151.0,0.00014997,2]
[391674664,1760725838003,-185.99211055,0.00014999,2]
[391674665,1760725838012,-500.0,0.00014999,2]
[391674666,1760725838022,-533.33050585,0.00014999,2]
[391674667,1760725838031,-500.0,0.00014999,2]
[391674668,1760725838041,-500.0,0.00014999,2]
[391674669,1760725838050,-325.07951936,0.00014999,2]
[391674670,1760725838060,-516.75523386,0.00014999,2]
[391674671,1760725838069,-474.77164745,0.00014999,2]
[391674672,1760725838079,-500.0,0.00014999,2]
[391674673,1760725838088,-500.0,0.00014999,2]
[391674674,1760725838098,-150.16215363,0.00014999,2]
[391674675,1760725838107,-500.0,0.00014999,2]
[391674676,1760725838117,-120910.78449366,0.00015,2]
[391674677,1760725838141,-1271.37012887,0.00015,2]
[391674678,1760725838201,-3618.8152,0.00015,2]
[391674679,1760725838258,-2235974.6414965,0.00015,2]
[391674680,1760725838268,-7880.43687719,0.00015,2]
[391674681,1760725838278,-7465801.88733721,0.00015,2]
[391674682,1760725838289,-23157.2743119,0.00015,2]
[391674683,1760725838299,-500.0,0.00015,2]
[391674684,1760725838308,-151.0,0.00015271,2]
[391674686,1760725838320,-500.0,0.00015274,2]
[391674688,1760725838330,-1517.64,0.000153,2]
[391674690,1760725838339,-151.0,0.00015305,2]
[391674692,1760725838348,-151.0,0.00015342,2]
[391674694,1760725838359,-151.0,0.00015394,2]
[391674696,1760725838368,-11306.77536906,0.000154,2]
[391674698,1760725838378,-501.75073774,0.000154,2]
[391674700,1760725838388,-1000.0,0.00015521,2]
[391674702,1760725838398,-1000.0,0.00015521,2]
[391674704,1760725838407,-500.0,0.00015548,2]
[391674706,1760725838416,-1018.29,0.00015702,2]
[391674708,1760725838426,-500.0,0.00015822,2]
[391674710,1760725838435,-255.0,0.00016031,2]
[391674712,1760725838446,-1500.0,0.00016068,2]
[391674714,1760725838455,-1000.0,0.00016068,2]
[391674716,1760725838464,-500.0,0.00016096,2]
[391674718,1760725838474,-1830.3336,0.00016137,2]
[391674720,1760725838483,-195.0,0.0001617,2]
[391674722,1760725838491,-300.0,0.0001617,2]
[391674724,1760725838501,-300.0,0.0001617,2]
[391674726,1760725838511,-500.0,0.0001617,3]
[391674728,1760725838521,-195.0,0.0001617,2]
[391674730,1760725838530,-300.0,0.0001617,2]
[391674732,1760725838539,-2176.74442359,0.0001617,2]
[391674734,1760725838549,-5000.00889632,0.000162,5]
[391674736,1760725838559,-420.0,0.000162,2]
[391674737,1760725838568,-1680.0,0.00016279,2]
[391674740,1760725838578,-500.0,0.0001637,2]
[391674742,1760725838587,-637.34393449,0.00016438,2]
[391674744,1760725838596,-500.0,0.00016438,2]
[391674745,1760725838605,-500.0,0.00016616,2]
[391674748,1760725838615,-182.8,0.00016712,2]
[391674749,1760725838625,-2225.14,0.00016872,2]
[391674751,1760725838634,-4500.0,0.00017,7]
[391674753,1760725838644,-433.0,0.00017253,2]
[391674755,1760725838653,-1000.53672237,0.00017534,2]
[391674757,1760725838662,-587.0,0.00017734,2]
[391674759,1760725838671,-2351.0,0.00017907,2]
[391674761,1760725838683,-5675.61729623,0.00017927,2]
[391674763,1760725838692,-509.70729923,0.00017973,2]
[391674765,1760725838701,-300.0,0.00017999,2]
[391674767,1760725838711,-300.0,0.00017999,2]
[391674769,1760725838720,-300.0,0.00017999,2]
[391674771,1760725838729,-1323.78782768,0.00018,2]
[391674773,1760725838738,-132638.19510029,0.00018,2]
[391674775,1760725838747,-1175.86919055,0.00018,2]
[391674777,1760725838756,-348.85478134,0.00018456,2]
[391674779,1760725838766,-736.0,0.00018564,2]
[391674781,1760725838775,-153.54,0.000188,2]
[391674783,1760725838785,-153.54,0.000188,2]
[391674785,1760725838794,-153.54,0.000188,2]
[391674786,1760725838804,-153.54,0.000188,2]
[391674788,1760725838813,-153.54,0.000188,2]
[391674790,1760725838822,-153.54,0.000188,2]
[391674792,1760725838832,-153.54,0.000188,2]
[391674794,1760725838842,-153.54,0.000188,2]
[391674796,1760725838851,-153.54,0.000188,2]
[391674798,1760725838860,-153.54,0.000188,2]
[391674800,1760725838870,-153.54,0.000188,2]
[391674802,1760725838880,-153.54,0.000188,2]
[391674804,1760725838889,-153.54,0.000188,2]
[391674806,1760725838898,-153.54,0.000188,2]
[391674808,1760725838908,-153.54,0.000188,2]
[391674810,1760725838917,-153.54,0.000188,2]
[391674812,1760725838926,-153.54,0.000188,2]
[391674814,1760725838939,-153.54,0.000188,2]
[391674816,1760725838948,-153.54,0.000188,2]
[391674818,1760725838957,-153.54,0.000188,2]
[391674820,1760725838966,-153.54,0.000188,2]
[391674822,1760725838976,-153.54,0.000188,2]
[391674824,1760725838985,-153.54,0.000188,2]
[391674826,1760725838994,-153.54,0.000188,2]
[391674828,1760725839004,-153.54,0.000188,2]
[391674830,1760725839014,-153.54,0.000188,2]
[391674832,1760725839023,-153.54,0.000188,2]
[391674834,1760725839033,-153.54,0.000188,2]
[391674836,1760725839043,-153.54,0.000188,2]
[391674838,1760725839053,-153.54,0.000188,2]
[391674840,1760725839063,-500.0,0.00018871,2]
[391674842,1760725839072,-500.0,0.00018871,2]
[391674844,1760725839082,-562.22531569,0.00018871,2]
[391674846,1760725839093,-501.34475597,0.00018871,2]
[391674848,1760725839103,-500.0,0.00018871,2]
[391674850,1760725839114,-500.0,0.00018871,2]
[391674852,1760725839126,-500.0,0.00018871,2]
[391674854,1760725839135,-500.0,0.00018871,2]
[391674856,1760725839145,-500.0,0.00018871,2]
[391674858,1760725839155,-500.0,0.00018871,2]
[391674860,1760725839165,-500.0,0.00018871,2]
[391674862,1760725839176,-500.0,0.00018871,2]
[391674864,1760725839187,-500.0,0.00018871,2]
[391674866,1760725839197,-500.0,0.00018871,2]
[391674868,1760725839207,-500.0,0.00018871,2]
[391674870,1760725839218,-500.0,0.00019073,2]
[391674872,1760725839229,-500.0,0.00019073,2]
[391674874,1760725839243,-170.67445687,0.00019073,2]
[391674876,1760725839253,-500.0,0.00019073,2]
[391674878,1760725839263,-500.0,0.00019073,2]
[391674880,1760725839275,-500.0,0.00019073,2]
[391674882,1760725839285,-340.0,0.00019073,2]
[391674884,1760725839295,-200.0,0.00019178,2]
[391674886,1760725839305,-500.0,0.00019396,2]
[391674888,1760725839316,-540.0,0.00019412,2]
[391674890,1760725839327,-1000.0,0.00019419,2]
[391674892,1760725839337,-1143.34805477,0.00019419,2]
[391674894,1760725839347,-624.85587665,0.00019419,2]
[391674896,1760725839357,-1000.0,0.00019419,2]
[391674898,1760725839367,-1000.0,0.00019419,2]
[391674900,1760725839377,-1001.33709641,0.00019419,2]
[391674902,1760725839387,-1000.0,0.00019419,2]
[391674904,1760725839397,-1000.0,0.00019419,2]
[391674906,1760725839407,-1030.35814271,0.00019419,2]
[391674909,1760725839416,-1000.0,0.00019419,2]
[391674911,1760725839427,-514.4251423,0.00019419,2]
[391674913,1760725839438,-500.0,0.00019419,2]
[391674915,1760725839448,-1000.0,0.00019419,2]
[391674917,1760725839458,-1381.48898188,0.000195,2]
[391674918,1760725839468,-204.22491194,0.000195,2]
[391674920,1760725839478,-198.09186119,0.000195,2]
[391674923,1760725839489,-174.95194413,0.000195,2]
[391674925,1760725839499,-163.51521853,0.000195,2]
[391674926,1760725839509,-288.42617776,0.000195,2]
[391674929,1760725839519,-242.51792924,0.000195,2]
[391674931,1760725839530,-419.09725024,0.00019621,2]
[391674933,1760725839540,-1000.0,0.00019621,2]
[391674934,1760725839550,-1000.0,0.00019621,2]
[391674937,1760725839560,-500.0,0.00019621,2]
[391674939,1760725839571,-1000.0,0.00019621,2]
[391674941,1760725839583,-3292.0,0.00019697,2]
[391674943,1760725839593,-1381.48898188,0.000197,2]
[391674945,1760725839603,-400.0,0.00019863,2]